[Event "22nd ETCC Women 2019"]
[Site "Batumi"]
[Date "2019.10.25"]
[Round "2.16"]
[White "Calzetta Ruiz, Monica"]
[Black "Mamedjarova, Turkan"]
[Result "1-0"]
[ECO "C77"]
[WhiteElo "2251"]
[BlackElo "2314"]
[Annotator "NA"]
[PlyCount "149"]
[EventDate "2019.10.24"]
[EventType "team-tourn"]
[EventCountry "GEO"]
[SourceTitle "playchess.com"]
[Source "ChessBase"]
[SourceQuality "1"]
[WhiteTeam "Spain"]
[BlackTeam "Azerbaijan"]
[WhiteTeamCountry "ESP"]
[BlackTeamCountry "AZE"]
[TimeControl "40/5400+30:1800+30"]

1. e4 {[%emt 0:00:00]} e5 {[%emt 0:00:00]} 2. Nf3 {[%emt 0:00:00]} Nc6 {[%emt 0:00:00]} 3. Bb5 {[%emt 0:00:00]} a6 {[%emt 0:00:06]} 4. Ba4 {[%emt 0:00:01]} Nf6 {[%emt 0:00:25]} 5. d3 {[%emt 0:00:30]} b5 {[%emt 0:00:57]} 6. Bb3 {[%emt 0:00:08]} Bc5 {[%emt 0:00:43]} 7. Nc3 {[%emt 0:01:09]} h6 {[%emt 0:02:38]} 8. Nd5 {[%emt 0:00:45]} d6 {[%emt 0:03:44]} 9. c3 {[%emt 0:00:46]} Rb8 {[%emt 0:02:55]} 10. O-O {[%emt 0:01:55]} O-O {[%emt 0:03:37]} 11. Re1 {[%emt 0:02:04]} Ba7 {[%emt 0:05:29]} 12. Be3 {[%emt 0:01:18]} Bxe3 {[%emt 0:04:51]} 13. Nxe3 {[%emt 0:03:23]} Na5 {[%emt 0:08:35]} 14. Bc2 {[%emt 0:01:44]} Re8 {[%emt 0:02:53]} 15. b4 {[%emt 0:02:49]} Nc6 {[%emt 0:04:55]} 16. a4 {[%emt 0:05:26]} g6 {[%emt 0:11:42]} 17. axb5 {[%emt 0:03:41]} axb5 {[%emt 0:00:08]} 18. Bb3 {[%emt 0:12:51]} Kg7 {[%emt 0:04:25]} 19. h3 {[%emt 0:02:47]} Nh5 {[%emt 0:04:57]} 20. Nd5 {[%emt 0:08:31]} Ne7 {[%emt 0:02:43]} 21. d4 {[%emt 0:09:28]} Nxd5 {[%emt 0:05:55]} 22. Bxd5 {[%emt 0:00:39]} Qf6 {[%emt 0:01:27]} 23. Bc6 {[%emt 0:09:44]} Re7 {[%emt 0:01:21]} 24. Ra5 {[%emt 0:02:58]} Nf4 {[%emt 0:02:07]} 25. Rxb5 {[%emt 0:03:55]} Rxb5 {[%emt 0:00:22]} 26. Bxb5 {[%emt 0:00:02]} g5 {[%emt 0:00:53]} 27. Re3 {[%emt 0:08:57]} Bb7 {[%emt 0:05:06]} 28. dxe5 {[%emt 0:02:01]} dxe5 {[%emt 0:00:13]} 29. Qd8 {[%emt 0:01:37]} Qd6 {[%emt 0:06:33]} 30. Qxd6 {[%emt 0:01:08]} cxd6 {[%emt 0:00:01]} 31. c4 {[%emt 0:01:54]} Rc7 {[%emt 0:01:23]} 32. Nd2 {[%emt 0:00:32]} f5 {[%emt 0:03:03]} 33. f3 {[%emt 0:02:59]} fxe4 {[%emt 0:00:27]} 34. fxe4 {[%emt 0:00:09]} Rc8 {[%emt 0:00:14]} 35. Ra3 {[%emt 0:01:00]} Ra8 {[%emt 0:05:29]} 36. Rxa8 {[%emt 0:00:11]} Bxa8 {[%emt 0:00:00]} 37. c5 {[%emt 0:01:14]} dxc5 {[%emt 0:00:36]} 38. bxc5 {[%emt 0:00:01]} Kf6 {[%emt 0:01:07]} 39. c6 {[%emt 0:00:12]} Ke6 {[%emt 0:01:13]} 40. Nc4 {[%emt 0:00:00]} Ne2+ {[%emt 0:00:00]} 41. Kf2 {[%emt 0:06:03]} Nc3 {[%emt 0:07:54]} 42. c7 {[%emt 0:00:44]} Bb7 {[%emt 0:01:02]} 43. Bc6 {[%emt 0:02:38]} Ba6 {[%emt 0:00:44]} 44. Ke3 {[%emt 0:07:30]} Nd1+ {[%emt 0:02:18]} 45. Kd2 {[%emt 0:00:23]} Nf2 {[%emt 0:00:14]} 46. Kc3 {[%emt 0:04:47]} g4 {[%emt 0:00:54]} 47. Bd5+ {[%emt 0:04:31]} Kd7 {[%emt 0:01:26]} 48. Nxe5+ {[%emt 0:00:03]} Kxc7 {[%emt 0:00:07]} 49. Nxg4 {[%emt 0:00:13]} Nxg4 {[%emt 0:01:12]} 50. hxg4 {[%emt 0:00:02]} Kd6 {[%emt 0:02:31]} 51. Kd4 {[%emt 0:00:04]} Bc8 {[%emt 0:01:08]} 52. e5+ {[%emt 0:00:10]} Ke7 {[%emt 0:00:04]} 53. Bf3 {[%emt 0:00:26]} Kf7 {[%emt 0:00:20]} 54. Ke4 {[%emt 0:00:20]} Ba6 {[%emt 0:00:56]} 55. Kf5 {[%emt 0:00:56]} Bc8+ {[%emt 0:00:13]} 56. Kf4 {[%emt 0:00:05]} Ba6 {[%emt 0:01:02]} 57. g5 {[%emt 0:01:19]} hxg5+ {[%emt 0:00:30]} 58. Kxg5 {[%emt 0:00:03]} Bd3 {[%emt 0:00:17]} 59. Bd5+ {[%emt 0:00:19]} Ke7 {[%emt 0:00:07]} 60. g4 {[%emt 0:01:43]} Be2 {[%emt 0:00:21]} 61. Kf4 {[%emt 0:01:46]} Bd1 {[%emt 0:00:33]} 62. g5 {[%emt 0:00:11]} Bc2 {[%emt 0:00:10]} 63. Be4 {[%emt 0:00:32]} Bb3 {[%emt 0:00:12]} 64. Bf5 {[%emt 0:02:11]} Ba2 {[%emt 0:00:35]} 65. g6 {[%emt 0:01:36]} Kf8 {[%emt 0:00:08]} 66. Kg5 {[%emt 0:00:11]} Kg7 {[%emt 0:00:19]} 67. Kf4 {[%emt 0:04:45]} Bb3 {[%emt 0:00:20]} 68. Ke3 {[%emt 0:00:41]} Kf8 {[%emt 0:02:51]} 69. Kd4 {[%emt 0:00:12]} Ke7 {[%emt 0:00:14]} 70. Bd3 {[%emt 0:00:23]} Kf8 {[%emt 0:00:24]} 71. Kc5 {[%emt 0:00:37]} Be6 {[%emt 0:00:58]} 72. Kd6 {[%emt 0:00:10]} Bb3 {[%emt 0:00:23]} 73. e6 {[%emt 0:00:53]} Ba4 {[%emt 0:00:45]} 74. e7+ {[%emt 0:00:31]} Kg7 {[%emt 0:00:05]} 75. Kc7 {[%emt 0:00:17]} 1-0

[Event "22nd ETCC Women 2019"]
[Site "Batumi"]
[Date "2019.10.25"]
[Round "2.16"]
[White "Golsta, Madara"]
[Black "Kyrkjebo, Marte B."]
[Result "1-0"]
[ECO "C45"]
[WhiteElo "1987"]
[BlackElo "1871"]
[Annotator "NA"]
[PlyCount "67"]
[EventDate "2019.10.24"]
[EventType "team-tourn"]
[EventCountry "GEO"]
[SourceTitle "playchess.com"]
[Source "ChessBase"]
[SourceQuality "1"]
[WhiteTeam "Latvia"]
[BlackTeam "Norway"]
[WhiteTeamCountry "LAT"]
[BlackTeamCountry "NOR"]
[TimeControl "40/5400+30:1800+30"]

1. e4 {[%emt 0:00:00]} e5 {[%emt 0:00:00]} 2. Nf3 {[%emt 0:00:00]} Nc6 {[%emt 0:00:00]} 3. d4 {[%emt 0:00:06]} exd4 {[%emt 0:00:08]} 4. Nxd4 {[%emt 0:00:08]} Bc5 {[%emt 0:00:34]} 5. Nb3 {[%emt 0:00:15]} Bb6 {[%emt 0:00:39]} 6. Nc3 {[%emt 0:00:12]} d6 {[%emt 0:01:47]} 7. Qe2 {[%emt 0:00:44]} Nf6 {[%emt 0:00:35]} 8. Bg5 {[%emt 0:02:15]} h6 {[%emt 0:06:49]} 9. Be3 {[%emt 0:12:51]} O-O {[%emt 0:06:38]} 10. O-O-O {[%emt 0:01:24]} Re8 {[%emt 0:01:15]} 11. f3 {[%emt 0:04:10]} Be6 {[%emt 0:01:42]} 12. g4 {[%emt 0:04:57]} Bxe3+ {[%emt 0:13:44]} 13. Qxe3 {[%emt 0:00:25]} Nh7 {[%emt 0:04:22]} 14. h4 {[%emt 0:05:11]} Qe7 {[%emt 0:13:30]} 15. Be2 {[%emt 0:06:52]} Ne5 {[%emt 0:07:13]} 16. Nd4 {[%emt 0:10:38]} c6 {[%emt 0:19:43]} 17. Rdg1 {[%emt 0:05:53]} Bc4 {[%emt 0:03:19]} 18. f4 {[%emt 0:03:54]} Bxe2 {[%emt 0:01:38]} 19. Qxe2 {[%emt 0:00:23]} Nd7 {[%emt 0:04:23]} 20. g5 {[%emt 0:02:45]} Kh8 {[%emt 0:03:54]} 21. Nf5 {[%emt 0:04:33]} Qf8 {[%emt 0:01:46]} 22. Qd2 {[%emt 0:11:15]} Re6 {[%emt 0:01:26]} 23. gxh6 {[%emt 0:01:20]} gxh6 {[%emt 0:02:17]} 24. Qd4+ {[%emt 0:02:17]} Ndf6 {[%emt 0:01:45]} 25. Ng7 {[%emt 0:05:46]} Re7 {[%emt 0:00:38]} 26. Rg2 {[%emt 0:05:23]} Rd8 {[%emt 0:01:35]} 27. Rd1 {[%emt 0:02:15]} c5 {[%emt 0:00:49]} 28. Qd3 {[%emt 0:01:01]} Ne8 {[%emt 0:00:44]} 29. Nf5 {[%emt 0:00:44]} Re6 {[%emt 0:00:18]} 30. Nd5 {[%emt 0:01:10]} Rg6 {[%emt 0:00:37]} 31. Rdg1 {[%emt 0:00:21]} Rxg2 {[%emt 0:00:45]} 32. Rxg2 {[%emt 0:00:08]} f6 {[%emt 0:00:29]} 33. Nfe7 {[%emt 0:00:23]} Ng7 {[%emt 0:00:28]} 34. Ng6+ {[%emt 0:00:05]} 1-0

[Event "22nd ETCC Women 2019"]
[Site "Batumi"]
[Date "2019.10.25"]
[Round "2.17"]
[White "Cramling, Pia"]
[Black "Nazarova, Anastasia"]
[Result "1-0"]
[ECO "D35"]
[WhiteElo "2462"]
[BlackElo "2147"]
[Annotator "ChessBase"]
[PlyCount "101"]
[EventDate "2019.10.24"]
[EventType "team-tourn"]
[EventCountry "GEO"]
[SourceTitle "playchess.com"]
[Source "ChessBase"]
[SourceQuality "1"]
[WhiteTeam "Sweden"]
[BlackTeam "Finland"]
[WhiteTeamCountry "SWE"]
[BlackTeamCountry "FIN"]
[TimeControl "40/5400+30:1800+30"]

1. d4 {[%emt 0:00:00]} d5 {[%emt 0:00:00]} 2. c4 {[%emt 0:00:00]} e6 {[%emt 0:00:00]} 3. Nc3 {[%emt 0:00:14]} Nf6 {[%emt 0:00:00]} 4. cxd5 {[%emt 0:01:12]} exd5 {[%emt 0:00:00]} 5. Bg5 {[%emt 0:00:09]} Be7 {[%emt 0:00:00]} 6. e3 {[%emt 0:00:10]} c6 {[%emt 0:00:00]} 7. Bd3 {[%emt 0:00:09]} Nbd7 {[%emt 0:00:05]} 8. h3 {[%emt 0:00:34]} O-O {[%emt 0:00:36]} 9. Bf4 {[%emt 0:00:17]} Re8 {[%emt 0:00:09]} 10. Nf3 {[%emt 0:00:18]} Nf8 {[%emt 0:00:19]} 11. Qc2 {[%emt 0:00:13]} Ne6 {[%emt 0:00:17]} 12. Be5 {[%emt 0:02:24]} g6 {[%emt 0:01:23]} 13. O-O-O {[%emt 0:03:44]} Bd7 {[%emt 0:07:22]} 14. Kb1 {[%emt 0:04:06]} c5 {[%emt 0:33:04]} 15. g4 {[%emt 0:06:30]} c4 {[%emt 0:03:16]} 16. Be2 {[%emt 0:00:28]} Nc7 {[%emt 0:05:08]} 17. Ka1 {[%emt 0:18:23]} Rc8 {[%emt 0:23:48]} 18. Rdg1 {[%emt 0:09:50]} Be6 {[%emt 0:08:12]} 19. Ng5 {[%emt 0:03:34]} b5 {[%emt 0:06:46]} 20. h4 {[%emt 0:25:22]} b4 {[%emt 0:01:11]} 21. Na4 {[%emt 0:00:15]} b3 22. axb3 {[%emt 0:02:05]} Na6 {[%emt 0:05:15]} 23. Nxe6 {[%emt 0:04:03]} fxe6 {[%emt 0:00:13]} 24. bxc4 {[%emt 0:00:59]} Nb4 {[%emt 0:00:54]} 25. Qb3 {[%emt 0:00:16]} Qa5 {[%emt 0:01:24]} 26. Rc1 {[%emt 0:06:25]} Nd7 {[%emt 0:00:40]} 27. Kb1 {[%emt 0:02:43]} Nxe5 {[%emt 0:01:25]} 28. dxe5 {[%emt 0:00:04]} Rb8 {[%emt 0:00:17]} 29. c5 {[%emt 0:01:03]} Nc6 {[%emt 0:01:09]} 30. Qa2 {[%emt 0:00:11]} Rb4 {[%emt 0:00:59]} 31. Nc3 {[%emt 0:00:26]} Qc7 {[%emt 0:00:31]} 32. f4 {[%emt 0:02:53]} Reb8 {[%emt 0:00:05]} 33. Rc2 {[%emt 0:00:11]} R4b7 {[%emt 0:01:22]} 34. Qa6 {[%emt 0:02:34]} Bxc5 {[%emt 0:00:22]} 35. Nb5 {[%emt 0:00:55]} Qb6 {[%emt 0:00:41]} 36. Qxb6 {[%emt 0:00:56]} axb6 {[%emt 0:00:04]} 37. g5 {[%emt 0:00:48]} Ne7 {[%emt 0:00:33]} 38. Bg4 {[%emt 0:00:54]} Bxe3 {[%emt 0:00:42]} 39. Bxe6+ {[%emt 0:00:08]} Kg7 {[%emt 0:00:11]} 40. h5 {[%emt 0:00:00]} Rf8 {[%emt 0:00:00]} 41. hxg6 {[%emt 0:16:01]} Bxf4 {[%emt 0:05:29]} 42. gxh7 {[%emt 0:04:43]} Bxe5 {[%emt 0:04:36]} 43. Rf2 {[%emt 0:00:22]} Ng6 {[%emt 0:00:33]} 44. Rxf8 {[%emt 0:02:32]} Kxf8 {[%emt 0:00:07]} 45. Bxd5 {[%emt 0:00:24]} Rd7 {[%emt 0:00:55]} 46. Be4 {[%emt 0:00:27]} Nh8 {[%emt 0:00:19]} 47. Nc3 {[%emt 0:01:28]} Rd4 {[%emt 0:01:00]} 48. Kc2 {[%emt 0:02:43]} Rb4 {[%emt 0:02:46]} 49. Re1 {[%emt 0:00:30]} Rc4 {[%emt 0:04:39]} 50. Bd5 {[%emt 0:01:19]} Bxc3 {[%emt 0:00:48]} 51. Rf1+ {[%emt 0:00:12]} 1-0

[Event "22nd ETCC Women 2019"]
[Site "Batumi"]
[Date "2019.10.25"]
[Round "2.17"]
[White "Mkrtchian, Lilit"]
[Black "Milliet, Sophie"]
[Result "0-1"]
[ECO "A61"]
[WhiteElo "2402"]
[BlackElo "2400"]
[Annotator "NA"]
[PlyCount "104"]
[EventDate "2019.10.24"]
[EventType "team-tourn"]
[EventCountry "GEO"]
[SourceTitle "playchess.com"]
[Source "ChessBase"]
[SourceQuality "1"]
[WhiteTeam "Armenia"]
[BlackTeam "France"]
[WhiteTeamCountry "ARM"]
[BlackTeamCountry "FRA"]
[TimeControl "40/5400+30:1800+30"]

1. d4 {[%emt 0:00:00]} Nf6 {[%emt 0:00:00]} 2. Nf3 {[%emt 0:00:08]} e6 {[%emt 0:03:29]} 3. c4 {[%emt 0:00:37]} c5 {[%emt 0:00:18]} 4. d5 {[%emt 0:00:51]} exd5 {[%emt 0:00:54]} 5. cxd5 {[%emt 0:00:10]} d6 {[%emt 0:00:08]} 6. Nc3 {[%emt 0:00:14]} g6 {[%emt 0:00:13]} 7. e4 {[%emt 0:02:13]} Bg7 {[%emt 0:00:59]} 8. Nd2 {[%emt 0:01:35]} O-O {[%emt 0:03:21]} 9. Be2 {[%emt 0:00:12]} Ne8 {[%emt 0:07:13]} 10. O-O {[%emt 0:01:35]} f5 {[%emt 0:00:06]} 11. exf5 {[%emt 0:00:41]} Bxf5 {[%emt 0:00:05]} 12. Nde4 {[%emt 0:00:38]} Na6 {[%emt 0:11:24]} 13. Bg5 {[%emt 0:13:57]} Nf6 {[%emt 0:00:13]} 14. Ng3 {[%emt 0:05:06]} Bd7 {[%emt 0:06:57]} 15. Qd2 {[%emt 0:00:38]} Nc7 {[%emt 0:14:52]} 16. a4 {[%emt 0:01:20]} a6 {[%emt 0:04:28]} 17. h4 {[%emt 0:27:43]} Qe8 {[%emt 0:08:16]} 18. Bf4 {[%emt 0:04:26]} Qe7 {[%emt 0:06:23]} 19. Rae1 {[%emt 0:04:22]} Nfe8 {[%emt 0:00:05]} 20. Bg5 {[%emt 0:07:41]} Qf7 {[%emt 0:00:22]} 21. Bc4 {[%emt 0:00:50]} Nf6 {[%emt 0:06:06]} 22. Nce4 {[%emt 0:07:49]} Nce8 {[%emt 0:01:38]} 23. Bxf6 {[%emt 0:13:58]} Bxf6 {[%emt 0:00:05]} 24. Ng5 {[%emt 0:00:15]} Bxg5 {[%emt 0:00:21]} 25. Qxg5 {[%emt 0:00:24]} Nf6 {[%emt 0:06:14]} 26. Re6 {[%emt 0:01:25]} Kh8 {[%emt 0:10:18]} 27. Rxd6 {[%emt 0:00:38]} b5 {[%emt 0:02:07]} 28. Ba2 {[%emt 0:01:59]} c4 {[%emt 0:00:15]} 29. Qe5 {[%emt 0:00:32]} Kg8 {[%emt 0:00:44]} 30. Qd4 {[%emt 0:01:00]} Qe7 {[%emt 0:04:41]} 31. Rb6 {[%emt 0:00:10]} Ng4 {[%emt 0:00:05]} 32. f3 {[%emt 0:02:14]} Qxh4 33. fxg4 {[%emt 0:00:09]} Qxg3 {[%emt 0:00:48]} 34. Rbf6 {[%emt 0:00:46]} Rxf6 {[%emt 0:01:50]} 35. Qxf6 {[%emt 0:00:10]} Qe3+ {[%emt 0:00:03]} 36. Kh2 {[%emt 0:00:54]} Qh6+ {[%emt 0:00:04]} 37. Kg3 {[%emt 0:00:21]} Rf8 {[%emt 0:00:55]} 38. Qxf8+ {[%emt 0:00:34]} Qxf8 {[%emt 0:00:01]} 39. Rxf8+ {[%emt 0:00:07]} Kxf8 {[%emt 0:00:02]} 40. Kf4 {[%emt 0:00:00]} Ke7 {[%emt 0:00:00]} 41. axb5 {[%emt 0:26:15]} axb5 {[%emt 0:00:57]} 42. Bb1 {[%emt 0:00:30]} Kd6 {[%emt 0:00:26]} 43. Be4 {[%emt 0:00:12]} Bc8 {[%emt 0:11:32]} 44. Kg5 {[%emt 0:04:16]} b4 {[%emt 0:04:30]} 45. g3 {[%emt 0:02:19]} Ke5 {[%emt 0:01:18]} 46. Bf3 {[%emt 0:00:20]} c3 {[%emt 0:03:53]} 47. bxc3 {[%emt 0:00:07]} bxc3 {[%emt 0:00:03]} 48. Bd1 {[%emt 0:00:03]} Kxd5 {[%emt 0:00:51]} 49. Kh6 {[%emt 0:01:25]} Bxg4 {[%emt 0:01:04]} 50. Bb3+ {[%emt 0:00:14]} Ke5 {[%emt 0:00:43]} 51. Kxh7 {[%emt 0:00:12]} Bf5 {[%emt 0:00:31]} 52. g4 {[%emt 0:00:07]} Be4 {[%emt 0:00:25]} 0-1

[Event "22nd ETCC Women 2019"]
[Site "Batumi"]
[Date "2019.10.25"]
[Round "2.18"]
[White "Skripchenko, Almira"]
[Black "Ghukasyan, Siranush"]
[Result "1-0"]
[ECO "C77"]
[WhiteElo "2403"]
[BlackElo "2261"]
[Annotator "NA"]
[PlyCount "115"]
[EventDate "2019.10.24"]
[EventType "team-tourn"]
[EventCountry "GEO"]
[SourceTitle "playchess.com"]
[Source "ChessBase"]
[SourceQuality "1"]
[WhiteTeam "France"]
[BlackTeam "Armenia"]
[WhiteTeamCountry "FRA"]
[BlackTeamCountry "ARM"]
[TimeControl "40/5400+30:1800+30"]

1. e4 {[%emt 0:00:00]} e5 {[%emt 0:00:00]} 2. Nf3 {[%emt 0:00:00]} Nc6 {[%emt 0:00:00]} 3. Bb5 {[%emt 0:00:28]} a6 {[%emt 0:00:00]} 4. Ba4 {[%emt 0:00:05]} Nf6 {[%emt 0:00:00]} 5. Nc3 {[%emt 0:00:30]} d6 {[%emt 0:01:52]} 6. Bxc6+ {[%emt 0:01:33]} bxc6 {[%emt 0:00:07]} 7. d4 {[%emt 0:00:04]} exd4 {[%emt 0:01:12]} 8. Nxd4 {[%emt 0:00:05]} Bd7 {[%emt 0:03:54]} 9. Qf3 {[%emt 0:04:17]} Bg4 {[%emt 0:32:21]} 10. Qd3 {[%emt 0:13:03]} c5 {[%emt 0:08:49]} 11. Nde2 {[%emt 0:00:31]} Be7 {[%emt 0:02:16]} 12. h3 {[%emt 0:17:47]} Bd7 {[%emt 0:01:12]} 13. O-O {[%emt 0:02:07]} O-O {[%emt 0:00:58]} 14. Ng3 {[%emt 0:00:25]} Re8 {[%emt 0:04:56]} 15. b3 {[%emt 0:03:10]} Bf8 {[%emt 0:05:49]} 16. Bb2 {[%emt 0:01:28]} Bc6 {[%emt 0:06:36]} 17. Rad1 {[%emt 0:04:55]} Bb7 {[%emt 0:11:36]} 18. Rfe1 {[%emt 0:03:36]} g6 {[%emt 0:03:15]} 19. Qc4 {[%emt 0:05:19]} Bg7 {[%emt 0:07:09]} 20. Na4 {[%emt 0:13:34]} Nd7 {[%emt 0:01:51]} 21. Bxg7 {[%emt 0:00:22]} Kxg7 {[%emt 0:00:06]} 22. Re3 {[%emt 0:03:02]} Qe7 {[%emt 0:01:41]} 23. Nc3 {[%emt 0:01:41]} Kg8 {[%emt 0:02:43]} 24. Qe2 {[%emt 0:02:11]} Qf6 {[%emt 0:00:40]} 25. Nf1 {[%emt 0:03:40]} Ne5 {[%emt 0:01:49]} 26. Nd2 {[%emt 0:03:00]} Qg7 {[%emt 0:00:44]} 27. Qf1 {[%emt 0:01:56]} Nd7 {[%emt 0:00:45]} 28. Nc4 {[%emt 0:00:54]} a5 {[%emt 0:01:04]} 29. Qe1 {[%emt 0:01:20]} Ne5 {[%emt 0:00:28]} 30. Nxe5 {[%emt 0:01:26]} Rxe5 {[%emt 0:00:17]} 31. Qd2 {[%emt 0:03:38]} Bc6 {[%emt 0:00:26]} 32. a4 {[%emt 0:00:13]} Rae8 {[%emt 0:00:26]} 33. Rde1 {[%emt 0:00:12]} Qh6 {[%emt 0:00:32]} 34. Qd3 {[%emt 0:00:18]} Ra8 {[%emt 0:00:36]} 35. Nb5 {[%emt 0:03:32]} Bxb5 {[%emt 0:00:41]} 36. Qxb5 {[%emt 0:00:04]} Qf8 {[%emt 0:00:19]} 37. f4 {[%emt 0:00:37]} Re7 {[%emt 0:00:34]} 38. e5 {[%emt 0:00:18]} Qe8 {[%emt 0:00:25]} 39. Qc4 {[%emt 0:05:19]} Qc6 {[%emt 0:00:40]} 40. f5 {[%emt 0:00:00]} Rae8 {[%emt 0:00:00]} 41. e6 {[%emt 0:08:47]} fxe6 {[%emt 0:06:38]} 42. f6 {[%emt 0:07:19]} d5 {[%emt 0:06:31]} 43. Qg4 {[%emt 0:00:06]} Rf7 {[%emt 0:01:47]} 44. Rxe6 {[%emt 0:00:05]} Rxe6 {[%emt 0:00:03]} 45. Rxe6 {[%emt 0:00:04]} Qd7 {[%emt 0:00:26]} 46. Qe2 {[%emt 0:00:08]} Rf8 {[%emt 0:07:14]} 47. Qe5 {[%emt 0:02:24]} c4 {[%emt 0:03:51]} 48. bxc4 {[%emt 0:01:40]} dxc4 {[%emt 0:00:30]} 49. c3 {[%emt 0:00:21]} Rf7 {[%emt 0:04:37]} 50. Qe4 {[%emt 0:02:19]} Rf8 {[%emt 0:02:53]} 51. Qxc4 {[%emt 0:00:12]} Kh8 {[%emt 0:00:19]} 52. Qe4 {[%emt 0:02:50]} Kg8 {[%emt 0:01:43]} 53. Qe5 {[%emt 0:00:30]} Qd1+ {[%emt 0:00:18]} 54. Kh2 {[%emt 0:00:15]} Qd7 {[%emt 0:00:05]} 55. c4 {[%emt 0:00:27]} c5 {[%emt 0:01:10]} 56. Rd6 {[%emt 0:02:50]} Qc7 {[%emt 0:00:34]} 57. h4 {[%emt 0:03:07]} Qc8 {[%emt 0:00:31]} 58. Qe7 {[%emt 0:00:28]} 1-0

[Event "22nd ETCC Women 2019"]
[Site "Batumi"]
[Date "2019.10.25"]
[Round "2.18"]
[White "Puuska, Heini"]
[Black "Frisk, Ellinor"]
[Result "1/2-1/2"]
[ECO "A46"]
[WhiteElo "1992"]
[BlackElo "2227"]
[Annotator "NA"]
[PlyCount "76"]
[EventDate "2019.10.24"]
[EventType "team-tourn"]
[EventCountry "GEO"]
[SourceTitle "playchess.com"]
[Source "ChessBase"]
[SourceQuality "1"]
[WhiteTeam "Finland"]
[BlackTeam "Sweden"]
[WhiteTeamCountry "FIN"]
[BlackTeamCountry "SWE"]
[TimeControl "40/5400+30:1800+30"]

1. d4 {[%emt 0:00:00]} Nf6 {[%emt 0:00:00]} 2. Nf3 {[%emt 0:00:00]} c5 {[%emt 0:00:00]} 3. e3 {[%emt 0:01:29]} d5 {[%emt 0:00:07]} 4. dxc5 {[%emt 0:02:48]} e6 {[%emt 0:01:24]} 5. b4 {[%emt 0:02:17]} a5 {[%emt 0:00:26]} 6. Bb5+ {[%emt 0:00:39]} Bd7 {[%emt 0:01:25]} 7. Bxd7+ {[%emt 0:01:02]} Nbxd7 {[%emt 0:00:19]} 8. c3 {[%emt 0:04:12]} axb4 {[%emt 0:00:07]} 9. cxb4 {[%emt 0:00:16]} b6 {[%emt 0:00:06]} 10. O-O {[%emt 0:06:55]} bxc5 {[%emt 0:00:30]} 11. b5 {[%emt 0:02:40]} c4 {[%emt 0:00:28]} 12. a4 {[%emt 0:08:50]} Nc5 {[%emt 0:00:05]} 13. Nd4 {[%emt 0:06:47]} Bd6 {[%emt 0:02:47]} 14. Nc3 {[%emt 0:04:14]} Qc7 {[%emt 0:08:45]} 15. h3 {[%emt 0:02:22]} O-O {[%emt 0:00:08]} 16. Ba3 {[%emt 0:03:14]} Rfe8 {[%emt 0:13:56]} 17. Nc6 {[%emt 0:09:19]} Nb3 {[%emt 0:09:32]} 18. Bxd6 {[%emt 0:00:48]} Qxd6 {[%emt 0:00:02]} 19. Ra2 {[%emt 0:02:08]} e5 {[%emt 0:02:22]} 20. Ne2 {[%emt 0:07:34]} Qc5 {[%emt 0:02:10]} 21. Nc1 {[%emt 0:08:00]} Na5 {[%emt 0:07:09]} 22. Nxa5 {[%emt 0:00:36]} Rxa5 {[%emt 0:00:02]} 23. Ne2 {[%emt 0:04:16]} Rea8 {[%emt 0:05:22]} 24. Qa1 {[%emt 0:02:16]} Nd7 {[%emt 0:02:24]} 25. Rd1 {[%emt 0:01:46]} f6 {[%emt 0:00:37]} 26. Nc3 {[%emt 0:03:32]} Nb6 {[%emt 0:00:36]} 27. Kh1 {[%emt 0:01:54]} Rd8 {[%emt 0:03:38]} 28. Rad2 {[%emt 0:06:24]} h6 {[%emt 0:04:17]} 29. f4 {[%emt 0:03:00]} Qxe3 {[%emt 0:16:20]} 30. Nxd5 {[%emt 0:00:14]} Nxd5 {[%emt 0:00:12]} 31. Rxd5 {[%emt 0:00:02]} Rxd5 {[%emt 0:00:14]} 32. Rxd5 {[%emt 0:00:21]} Qxf4 {[%emt 0:04:51]} 33. Rd8+ {[%emt 0:00:34]} Kh7 {[%emt 0:00:38]} 34. Qb1+ {[%emt 0:01:05]} f5 {[%emt 0:00:44]} 35. Qb4 {[%emt 0:01:37]} Qf1+ {[%emt 0:02:03]} 36. Kh2 {[%emt 0:00:11]} Qf4+ {[%emt 0:00:10]} 37. Kh1 {[%emt 0:00:10]} Qf1+ {[%emt 0:02:10]} 38. Kh2 {[%emt 0:00:08]} Qf4+ {[%emt 0:00:18]} 1/2-1/2

[Event "22nd ETCC Women 2019"]
[Site "Batumi"]
[Date "2019.10.25"]
[Round "2.19"]
[White "Danielian, Elina"]
[Black "Navrotescu, Andreea-Cristiana"]
[Result "1-0"]
[ECO "D05"]
[WhiteElo "2385"]
[BlackElo "2241"]
[Annotator "NA"]
[PlyCount "77"]
[EventDate "2019.10.24"]
[EventType "team-tourn"]
[EventCountry "GEO"]
[SourceTitle "playchess.com"]
[Source "ChessBase"]
[SourceQuality "1"]
[WhiteTeam "Armenia"]
[BlackTeam "France"]
[WhiteTeamCountry "ARM"]
[BlackTeamCountry "FRA"]
[TimeControl "40/5400+30:1800+30"]

1. d4 {[%emt 0:00:00]} e6 {[%emt 0:00:00]} 2. Nf3 {[%emt 0:00:00]} Nf6 {[%emt 0:00:00]} 3. e3 {[%emt 0:00:13]} d5 {[%emt 0:00:00]} 4. Bd3 {[%emt 0:00:27]} c5 {[%emt 0:00:43]} 5. b3 {[%emt 0:03:18]} Nc6 {[%emt 0:00:22]} 6. O-O {[%emt 0:00:42]} Bd6 {[%emt 0:01:15]} 7. Bb2 {[%emt 0:01:29]} O-O {[%emt 0:00:22]} 8. Nbd2 {[%emt 0:03:21]} b6 {[%emt 0:15:38]} 9. a3 {[%emt 0:00:19]} Bb7 {[%emt 0:00:54]} 10. Qe2 {[%emt 0:06:43]} Rc8 {[%emt 0:08:24]} 11. Ne5 {[%emt 0:08:50]} Ne7 {[%emt 0:01:24]} 12. Rfd1 {[%emt 0:05:51]} Qc7 {[%emt 0:15:30]} 13. c4 {[%emt 0:04:53]} Ne4 {[%emt 0:04:09]} 14. Nf1 {[%emt 0:05:21]} f6 {[%emt 0:03:54]} 15. Nf3 {[%emt 0:02:11]} Ng6 {[%emt 0:10:51]} 16. Rac1 {[%emt 0:02:38]} Qe7 {[%emt 0:01:31]} 17. cxd5 {[%emt 0:05:55]} exd5 {[%emt 0:03:38]} 18. dxc5 {[%emt 0:01:43]} Nxc5 {[%emt 0:04:43]} 19. Bf5 {[%emt 0:03:09]} Rcd8 {[%emt 0:09:10]} 20. Nd4 {[%emt 0:00:54]} Be5 {[%emt 0:04:41]} 21. b4 {[%emt 0:11:53]} Bxd4 {[%emt 0:00:05]} 22. Bxd4 {[%emt 0:00:08]} Nb3 {[%emt 0:00:04]} 23. Rc3 {[%emt 0:00:36]} Nxd4 {[%emt 0:00:28]} 24. Rxd4 {[%emt 0:00:04]} Ne5 {[%emt 0:00:24]} 25. Qc2 {[%emt 0:00:39]} g6 {[%emt 0:12:19]} 26. Rc7 {[%emt 0:00:54]} Qe8 {[%emt 0:00:35]} 27. Rxb7 {[%emt 0:02:08]} gxf5 {[%emt 0:00:04]} 28. Qxf5 {[%emt 0:01:25]} Qg6 {[%emt 0:00:07]} 29. Ng3 {[%emt 0:05:13]} Rf7 {[%emt 0:01:25]} 30. Rxf7 {[%emt 0:00:29]} Kxf7 {[%emt 0:00:20]} 31. h3 {[%emt 0:04:35]} Qxf5 {[%emt 0:00:39]} 32. Nxf5 {[%emt 0:00:04]} Ke6 {[%emt 0:00:08]} 33. Ng7+ {[%emt 0:02:30]} Ke7 {[%emt 0:00:26]} 34. Rh4 {[%emt 0:04:30]} Rg8 {[%emt 0:01:00]} 35. Nf5+ {[%emt 0:00:31]} Ke6 {[%emt 0:01:34]} 36. Nd4+ {[%emt 0:00:04]} Kd6 {[%emt 0:00:20]} 37. Rxh7 {[%emt 0:00:18]} a6 {[%emt 0:00:22]} 38. g4 {[%emt 0:01:09]} Nc4 {[%emt 0:00:19]} 39. Nf5+ {[%emt 0:00:10]} 1-0